fUST/lending_fUST_20260221
["ID","MTS","AMOUNT","RATE_DAILY","PERIOD"]
[406204492,1771603832106,-500.0,0.00013273,2]
[406204494,1771603832115,-464.89229601,0.00013273,2]
[406204496,1771603832125,-150.0,0.00013273,2]
[406204498,1771603832134,-608.0,0.00013273,2]
[406204500,1771603832143,-300.0,0.00013673,2]
[406204502,1771603832152,-265.99305765,0.00013699,2]
[406204503,1771603832162,-500.0,0.00013699,2]
[406204505,1771603832171,-500.0,0.00013699,2]
[406204507,1771603832180,-150.0,0.000137,2]
[406204509,1771603832189,-1000.0,0.00013821,2]
[406204511,1771603832198,-150.0,0.000142,2]
[406204513,1771603832207,-500.0,0.00014247,2]
[406204515,1771603832216,-1000.0,0.00014247,2]
[406204517,1771603832225,-1000.0,0.00014368,2]
[406204519,1771603832235,-150.0,0.000148,2]
[406204521,1771603832244,-242.0,0.00015,2]
[406204523,1771603832253,-187.37301609,0.00015273,2]
[406204525,1771603832262,-150.0,0.000153,2]
[406204527,1771603832280,-150.0,0.000159,2]
[406204529,1771603832289,-150.0,0.000164,2]
[406204531,1771603832298,-150.0,0.00017,2]
[406204533,1771603832307,-150.0,0.000175,2]
[406204535,1771603832316,-150.0,0.000181,2]
[406204537,1771603832326,-150.0,0.000186,2]
[406204539,1771603832335,-1250.5934569,0.00018892,2]
[406204541,1771603832344,-150.0,0.000192,2]
[406204543,1771603832354,-150.0,0.000197,2]
[406204545,1771603832363,-150.0,0.000203,2]
[406204546,1771603832371,-150.0,0.000208,2]
[406204549,1771603832393,-195.873892,0.00020914,2]
[406204552,1771603832403,-150.0,0.000214,2]
[406204554,1771603832412,-195.873892,0.00021794,2]
[406204556,1771603832422,-250.0,0.000219,2]
[406204558,1771603832430,-195.873892,0.00022675,2]
[406204560,1771603832440,-151.5933512,0.00023107,2]
[406204562,1771603832450,-195.873892,0.00023555,2]
[406204564,1771603832459,-195.873892,0.00024435,2]
[406204566,1771603832469,-195.873892,0.00025316,2]
[406204568,1771603832478,-600.0,0.00027106,30]
[406204570,1771603832487,-150.0,0.000285,120]
[406204572,1771603832496,-1402.9484872,0.00028886,2]
[406204574,1771603832506,-179.958,0.0002891,21]
[406204576,1771603832515,-720.0,0.00029817,30]
[406204577,1771603832525,-163.0,0.000304,120]
[406204579,1771603832535,-743.73449086,0.00030677,2]
[406204581,1771603832545,-2494.13064391,0.00030971,2]
[406204583,1771603832555,-394.55156995,0.00030971,2]
[406204585,1771603832564,-181.08010149,0.00031205,2]
[406204587,1771603832575,-187.78006525,0.00031205,2]
[406204589,1771603832585,-250.0,0.00031205,2]
[406204591,1771603832595,-194.72792766,0.00031205,2]
[406204593,1771603832606,-151.93505466,0.00031205,2]
[406204595,1771603832616,-201.93286099,0.00031205,2]
[406204597,1771603832627,-1038.13271576,0.00031205,2]
[406204599,1771603832636,-209.40437684,0.00031205,2]
[406204602,1771603832648,-217.15233878,0.00031205,2]
[406204604,1771603832657,-225.18697532,0.00031205,2]
[406204606,1771603832667,-233.51889341,0.00031205,2]
[406204608,1771603832675,-242.15909246,0.00031205,2]
[406204610,1771603832685,-251.11897888,0.00031205,2]
[406204612,1771603832694,-260.4103811,0.00031205,2]
[406204614,1771603832703,-255.37652296,0.00031205,2]
[406204615,1771603832712,-500.0,0.00031205,2]
[406204618,1771603832721,-500.0,0.00031205,2]
[406204620,1771603832731,-500.0,0.00031205,2]
[406204621,1771603832740,-500.0,0.00031205,2]
[406204623,1771603832749,-500.0,0.00031205,2]
[406204625,1771603832758,-157.89058992,0.00031796,2]
[406204627,1771603832767,-178.31481418,0.00031796,2]
[406204629,1771603832776,-150.0,0.00031796,2]
[406204631,1771603832786,-150.0,0.00031797,2]
[406204633,1771603832795,-500.0,0.00031797,2]
[406204635,1771603832804,-150.0,0.00031851,2]
[406204637,1771603832814,-213.90317119,0.00031852,2]
[406204639,1771603832823,-500.0,0.00031852,2]
[406204641,1771603832833,-150.0,0.00031906,2]
[406204643,1771603832842,-319.88154144,0.00031907,2]
[406204645,1771603832852,-238.39671084,0.0003196,2]
[406204647,1771603832862,-2000.0,0.00032,120]
[406204649,1771603832871,-250.0,0.00032071,2]
[406204652,1771603832882,-250.0,0.00032071,2]
[406204653,1771603832892,-250.0,0.00032071,2]
[406204656,1771603832901,-250.0,0.00032071,2]
[406204657,1771603832911,-250.0,0.00032071,2]
[406204660,1771603832921,-250.0,0.00032071,2]
[406204661,1771603832930,-250.0,0.00032071,2]
[406204663,1771603832939,-305.92716569,0.00032071,2]
[406204665,1771603832949,-450.422,0.00032082,31]
[406204667,1771603832959,-500.0,0.00032088,15]
[406204668,1771603832968,-2000.0,0.00032089,2]
[406204670,1771603832978,-500.0,0.00032089,15]
[406204672,1771603832987,-500.0,0.00032089,15]
[406204674,1771603832997,-272.85,0.0003209,3]
[406204676,1771603833006,-500.0,0.00032099,15]
[406204678,1771603833016,-500.0,0.00032099,15]
[406204680,1771603833026,-500.0,0.00032099,15]
[406204682,1771603833035,-511.96308812,0.00032099,15]
[406204684,1771603833045,-188.98713522,0.00032099,2]
[406204686,1771603833055,-18645.72789843,0.000321,3]
[406204689,1771603833069,-7542.08566576,0.000321,3]
[406204748,1771603838315,-323.67651381,0.00029271,14]
[406204765,1771603838469,-940.93627182,0.00029271,14]
[406204767,1771603838479,-2379.22557143,0.00030468,14]
[406204769,1771603838488,-743.73449086,0.00030616,2]
[406204771,1771603838497,-500.0,0.00031205,2]
[406204773,1771603838507,-500.0,0.00031205,2]
[406204774,1771603838517,-500.0,0.00031205,2]
[406204776,1771603838527,-500.0,0.00031205,2]
[406204779,1771603838537,-500.0,0.00031205,2]
[406204781,1771603838546,-500.0,0.00031205,2]
[406204783,1771603838555,-500.0,0.00031205,2]
[406204785,1771603838565,-500.0,0.00031205,2]
[406204787,1771603838574,-200.0,0.00031205,2]
[406204789,1771603838585,-2427.68699673,0.00031664,14]
[406204791,1771603838594,-421.02524311,0.0003207,2]
[406204793,1771603838604,-500.0,0.0003207,2]
[406204794,1771603838613,-2018.21,0.0003209,10]
[406204797,1771603838623,-104089.56650289,0.000321,3]
[406204799,1771603838632,-209.5,0.000321,14]
[406204801,1771603838641,-156.79,0.000321,7]
[406204803,1771603838650,-743.73449086,0.000321,3]
[406204805,1771603838660,-207.76589106,0.00032131,2]
[406204806,1771603838669,-440.14070187,0.000323,3]
[406204808,1771603838678,-277.03580592,0.00032647,2]
[406204811,1771603838689,-864.0,0.00032799,30]
[406204813,1771603838698,-2573.07127312,0.00032861,14]
[406204814,1771603838707,-999.0,0.00032876,120]
[406204816,1771603838717,-818.58,0.0003309,3]
[406204819,1771603838727,-27060.05370013,0.000331,14]
[406205156,1771603845650,-1015.905,0.00031971,2]
[406205171,1771603846139,-3987.4799298,0.00031971,2]
[406205172,1771603846148,-11563.58629987,0.000331,14]
[406205173,1771603846158,-743.73449086,0.000331,3]
[406205174,1771603846167,-377.32367961,0.0003312,2]
[406205175,1771603846176,-5003.38492977,0.00033287,2]
[406205176,1771603846186,-263.81361313,0.00033357,2]
[406205177,1771603846303,-14095.05791503,0.0003342,2]
[406205182,1771604282044,3781.38429616,0.000156,120]
[406205243,1771605032192,-337.005,0.00013273,2]
[406205245,1771605032205,-162.995,0.00013273,2]
[406205246,1771605032215,-300.79503101,0.00013273,2]
[406205247,1771605032224,-358.73654042,0.00013273,2]
[406205248,1771605032233,-222.15552708,0.00013273,2]
[406205249,1771605032243,-500.0,0.00013273,2]
[406205250,1771605032252,-205.28764678,0.00013273,2]
[406205251,1771605032261,-608.0,0.00013273,2]
[406205252,1771605032271,-500.0,0.00013699,2]
[406205253,1771605032280,-164.35579006,0.00013821,2]
[406205295,1771605038765,-549.73422366,0.00013821,2]
[406205297,1771605038775,-326.50605517,0.00014247,2]
[406205299,1771605038784,-1098.50190021,0.00015795,2]
[406205301,1771605038794,-483.13077647,0.00017504,2]
[406205303,1771605038805,-1563.87302408,0.00017504,2]
[406205305,1771605038815,-386.50017113,0.00019212,2]
[406205308,1771605038830,-1701.74284236,0.00019212,2]
[406205310,1771605038839,-3000.0,0.00019222,5]
[406205312,1771605038849,-70.6986646,0.00020921,2]
[406205519,1771605040938,-306.7591835,0.00020921,2]
[406206023,1771605045842,-1622.92608813,0.00020921,2]
[406206026,1771605045855,-211.57671641,0.00020921,2]
[406206028,1771605045864,-2541.87435707,0.00024338,2]
[406206030,1771605045877,-742.0,0.00024527,10]
[406206032,1771605045886,-2706.83120928,0.00026047,5]
[406206033,1771605045895,-500.0,0.00026048,7]
[406206036,1771605045905,-500.0,0.00026199,7]
[406206037,1771605045914,-500.0,0.00026434,7]
[406206039,1771605045925,-500.0,0.00026563,7]
[406206041,1771605045934,-500.0,0.00026645,7]
[406206044,1771605045945,-743.73449086,0.00026874,2]
[406206045,1771605045955,-500.0,0.00026901,7]
[406206048,1771605045964,-500.0,0.00027555,7]
[406206049,1771605045973,-2871.78806149,0.00027756,10]
[406206052,1771605045983,-500.0,0.00027812,7]
[406206053,1771605045992,-154.0,0.00028,14]
[406206055,1771605046001,-500.0,0.00028704,2]
[406206057,1771605046010,-500.0,0.00028704,2]
[406206059,1771605046019,-500.0,0.00028704,2]
[406206061,1771605046028,-192.21106708,0.00028704,2]
[406206063,1771605046038,-500.0,0.00028704,2]
[406206065,1771605046047,-356.02806004,0.00028704,2]
[406206067,1771605046056,-500.0,0.00028704,2]
[406206069,1771605046065,-500.0,0.00028704,2]
[406206071,1771605046075,-500.0,0.00028704,2]
[406206073,1771605046084,-500.0,0.00028704,2]
[406206075,1771605046093,-500.0,0.00028704,2]
[406206077,1771605046103,-500.0,0.00028704,2]
[406206079,1771605046112,-500.0,0.00028704,2]
[406206081,1771605046122,-500.0,0.00028704,2]
[406206083,1771605046131,-426.90947184,0.00028704,2]
[406206085,1771605046141,-300.0,0.00028704,2]
[406206087,1771605046150,-500.0,0.00028704,2]
[406206089,1771605046159,-500.0,0.00028704,2]
[406206091,1771605046168,-500.0,0.00028704,2]
[406206093,1771605046177,-500.0,0.00028704,2]
[406206095,1771605046186,-511.31973069,0.00028704,2]
[406206097,1771605046195,-3752.53869738,0.00028705,2]
[406206099,1771605046205,-811.07,0.00028796,10]
[406206101,1771605046215,-1546.66,0.00028796,10]
[406206103,1771605046224,-545.7,0.00028796,3]
[406206105,1771605046234,-1288.88,0.00028796,10]
[406206108,1771605046244,-212.38437487,0.00028805,2]
[406206111,1771605046253,-148538.83744301,0.00028806,2]
[406206113,1771605046265,-937.14201836,0.00028806,2]
[406206116,1771605046280,-511.07237035,0.00028806,2]
[406206118,1771605046291,-772.41556636,0.00028806,2]
[406206122,1771605046325,-17283.21997436,0.00028806,2]
[406206639,1771606232268,-5000.0,0.0001314,3]
[406206642,1771606232278,-500.0,0.00013273,2]
[406206644,1771606232288,-899.85900595,0.00013821,2]
[406206646,1771606232297,-482.0,0.00016283,2]
[406206648,1771606232310,-1142.07859284,0.00019425,2]
[406206774,1771606238444,-250.0,0.00017189,2]
[406206776,1771606238454,-2449.75856046,0.00019425,2]
[406206778,1771606238464,-200.0,0.00020502,2]
[406206780,1771606238476,-556.81330341,0.00020502,2]
[406206782,1771606238485,-158.54549687,0.00020502,2]
[406206784,1771606238495,-622.00026651,0.00020503,2]
[406206788,1771606238507,-260.02415331,0.00020503,2]
[406206791,1771606238518,-4040.4743906,0.00020503,2]
[406207009,1771606240776,-6646.47462652,0.00020503,2]
[406207011,1771606240787,-1328.89257491,0.00020503,2]
[406207013,1771606240799,-5698.36104783,0.00020503,2]
[406207015,1771606240808,-743.73449086,0.00023,3]
[406207017,1771606240817,-650.0,0.0002605,7]
[406207019,1771606240826,-1758.80224466,0.00026972,2]
[406207021,1771606240835,-288.53324221,0.00026972,2]
[406207023,1771606240845,-3283.47136019,0.00027297,2]
[406207025,1771606240853,-500.0,0.00027397,2]
[406207027,1771606240863,-500.0,0.00027397,2]
[406207029,1771606240872,-743.73449086,0.00027913,2]
[406207031,1771606240881,-209.154,0.00028766,2]
[406207033,1771606240891,-548.75,0.00028796,10]
[406207035,1771606240901,-982.61,0.00028796,10]
[406207037,1771606240909,-818.84,0.00028796,10]
[406207039,1771606240919,-500.0,0.00028805,2]
[406207041,1771606240931,-500.0,0.00028805,2]
[406207043,1771606240940,-1350.35481813,0.00028806,2]
[406207046,1771606240951,-3502.94299894,0.00028806,2]
[406207048,1771606240963,-4404.01492013,0.00028806,2]
[406207444,1771606244951,-282.92772607,0.00024953,3]
[406207469,1771606245166,-771.14628782,0.00024953,3]
[406207471,1771606245176,-493.6422938,0.00024953,3]
[406207473,1771606245187,-3452.28369231,0.00024953,3]
[406207475,1771606245196,-682.37,0.00028796,10]
[406207477,1771606245205,-494.01003897,0.00028806,2]
[406207479,1771606245216,-16326.71152636,0.00028806,2]
[406207482,1771606245229,-3884.64735648,0.00028806,2]
[406207484,1771606245240,-423.185,0.00028806,2]
[406207619,1771606246432,-602.605739,0.00028806,2]
[406207621,1771606246444,-4717.61897274,0.00028806,2]
[406211663,1771606920874,-1276.42164587,0.00013003,3]
[406211671,1771607432383,-5000.0,0.00012839,2]
[406211673,1771607432393,-602.0,0.00012839,2]
[406211674,1771607432402,-204.44111628,0.00012937,2]
[406211676,1771607432414,-83.82925975,0.00012937,2]
[406211678,1771607432423,-171.33,0.000131,2]
[406211680,1771607432432,-221.06,0.000132,2]
[406211681,1771607432441,-300.0,0.00013271,2]
[406211682,1771607432450,-300.0,0.00013271,2]
[406211683,1771607432460,-46.80716647,0.00013271,2]
[406211684,1771607432472,-363.69361527,0.00013271,2]
[406211687,1771607432483,-335.41,0.00013271,2]
[406211717,1771607438579,-5000.0,0.00012711,2]
[406211719,1771607438589,-454.08921826,0.00013271,2]
[406211721,1771607438599,-500.0,0.00013272,2]
[406211723,1771607438608,-500.0,0.00013272,2]
[406211725,1771607438619,-500.0,0.00013272,2]
[406211727,1771607438630,-500.0,0.00013272,2]
[406211730,1771607438639,-174.23700379,0.00013272,2]
[406211732,1771607438649,-500.0,0.00013272,2]
[406211733,1771607438658,-428.71560235,0.00013272,2]
[406211736,1771607438670,-4.49431462,0.00013272,2]
[406211738,1771607438679,-252.41468538,0.00013272,2]
[406211922,1771607440842,-202.71593737,0.00013272,2]
[406211923,1771607440855,-500.0,0.00013272,2]
[406211924,1771607440864,-500.0,0.00013272,2]
[406211925,1771607440877,-500.0,0.00013272,2]
[406211926,1771607440888,-500.0,0.00013272,2]
[406211927,1771607440900,-500.0,0.00013273,2]
[406211928,1771607440912,-504.13955977,0.00013273,2]
[406211929,1771607440924,-500.0,0.00013273,2]
[406211930,1771607440936,-6579.95119724,0.00013273,2]
[406212011,1771607443788,-500.0,0.00013273,2]
[406212037,1771607444051,-6555.00000238,0.00013273,2]
[406212038,1771607444065,-36365.04880038,0.00013273,2]
[406212039,1771607444077,-500.0,0.00013273,2]
[406212040,1771607444088,-500.0,0.00013699,2]
[406212041,1771607444100,-500.0,0.00013699,2]
[406212042,1771607444112,-173.34318746,0.00013699,2]
[406212043,1771607444126,-178.69,0.000138,2]
[406212044,1771607444137,-1000.0,0.00013821,2]
[406212045,1771607444148,-1000.0,0.00014247,2]
[406212046,1771607444160,-911.34022662,0.00014368,2]
[406212047,1771607444170,-420.0,0.00014549,2]
[406212048,1771607444180,-802.0,0.00014598,2]
[406212049,1771607444190,-727.8509917,0.00014795,2]
[406212050,1771607444200,-230.10896447,0.0001713,2]
[406212052,1771607444212,-500.0,0.00017131,2]
[406212053,1771607444222,-500.0,0.00017131,2]
[406212055,1771607444233,-500.0,0.00017131,2]
[406212057,1771607444247,-500.0,0.00017131,2]
[406212058,1771607444259,-2992.10367977,0.00017789,2]
[406212059,1771607444270,-211.62912252,0.0002,2]
[406212060,1771607444283,-500.0,0.00021734,2]
[406212061,1771607444293,-743.73449086,0.00021739,2]
[406212062,1771607444304,-500.0,0.00021871,2]
[406212063,1771607444317,-2873.03744013,0.00021871,2]
[406212064,1771607444328,-500.0,0.00022145,2]
[406212065,1771607444340,-151.26,0.000231,7]
[406212066,1771607444352,-737.37983472,0.00023539,2]
[406212067,1771607444364,-482.78,0.0002489,10]
[406212068,1771607444376,-402.32,0.0002489,10]
[406212069,1771607444387,-335.26,0.0002489,10]
[406212070,1771607444397,-15589.6311331,0.000249,2]
[406212071,1771607444406,-2873.03744013,0.00025733,2]
[406212072,1771607444416,-309.0,0.00026225,2]
[406212073,1771607444425,-580.54681941,0.00026272,2]
[406212079,1771607446627,-39.89904091,0.00026272,2]
[406212080,1771607446640,-358.0,0.00026491,2]
[406212081,1771607446651,-309.96644487,0.00027057,2]
[406212082,1771607446663,-700.37623598,0.00027397,2]
[406212083,1771607446672,-450.61142151,0.00027397,2]
[406212084,1771607446684,-188.61857849,0.00027397,2]
[406212085,1771607446694,-639.23,0.00027397,2]
[406212086,1771607446705,-639.23,0.00027397,2]
[406212087,1771607446716,-639.23,0.00027397,2]
[406212088,1771607446726,-1445.2831942,0.00027455,2]
[406212089,1771607446737,-237.7262509,0.00027455,2]
[406212090,1771607446748,-349.54,0.0002788,10]
[406212091,1771607446758,-309.21,0.0002788,10]
[406212092,1771607446768,-4006.93197641,0.0002789,2]
[406212098,1771608428889,7717.7,0.00014,30]
[406212118,1771608631591,-335.505,0.0001314,2]
[406212120,1771608631614,-424.590013,0.0001314,2]
[406212124,1771608631661,-4239.904987,0.0001314,2]
[406212125,1771608631671,-606.0,0.0001314,2]
[406212126,1771608631681,-168.45719735,0.00013273,2]
[406212127,1771608631690,-160.8870659,0.0001345,2]
[406212128,1771608631700,-1083.9623956,0.00018046,2]
[406212129,1771608631709,-178.2946881,0.00018046,2]
[406212130,1771608631719,-3142.61427666,0.00019205,5]
[406212131,1771608631728,-1083.9623956,0.00020446,2]
[406212132,1771608631736,-178.2946881,0.00020911,2]
[406212133,1771608631745,-1083.9623956,0.00022846,2]
[406212134,1771608631754,-235.60758168,0.000234,2]
[406212135,1771608631764,-424.09364703,0.000234,2]
[406212136,1771608631773,-310.1371894,0.00023729,2]
[406212137,1771608631783,-4040.4743906,0.00023729,2]
[406212138,1771608631792,-178.2946881,0.00023776,2]
[406212139,1771608631801,-873.66590977,0.00025246,2]
[406212333,1771608640133,-210.29648583,0.00025246,2]
[406212335,1771608640142,-320.01024734,0.00025363,2]
[406212341,1771608640187,-555.70921346,0.00025363,2]
[406212343,1771608640196,-743.73449086,0.00026224,2]
[406212345,1771608640206,-200.54435568,0.00026544,3]
[406212347,1771608640217,-138.8758555,0.00026544,3]
[406212348,1771608640226,-675.63455286,0.00026578,2]
[406212350,1771608640237,-532.01161294,0.00026578,2]
[406212352,1771608640246,-178.2946881,0.00026642,2]
[406212354,1771608640255,-1562.39568946,0.00026656,3]
[406212356,1771608640264,-1356.32316388,0.00026656,3]
[406212358,1771608640273,-500.0,0.00027396,2]
[406212360,1771608640282,-390.98991228,0.0002765,3]
[406212362,1771608640290,-151.26,0.00028,7]
[406212364,1771608640299,-500.0,0.00028531,2]
[406212366,1771608640308,-528.07228931,0.00028586,2]
[406212368,1771608640318,-532.69,0.00028662,2]
[406212370,1771608640327,-500.0,0.00028685,2]
[406212372,1771608640336,-437.02332411,0.00028703,2]
[406212374,1771608640345,-692.37796966,0.00028704,2]
[406212377,1771608640354,-1246.28034539,0.00028704,2]
[406212379,1771608640363,-2215.60950291,0.00028704,2]
[406212381,1771608640372,-601.05662397,0.00028704,2]
[406212383,1771608640381,-1081.90192314,0.00028704,2]
[406212385,1771608640390,-1923.3811967,0.00028704,2]
[406212387,1771608640399,-3888.46006131,0.00028706,2]
[406212747,1771608643805,-1253.72127489,0.00024953,3]
[406212749,1771608643818,-1226.05301822,0.00024953,3]
[406212751,1771608643828,-5310.15354344,0.00028706,2]
[406212753,1771608643837,-532.69,0.00028795,2]
[406212755,1771608643846,-532.69,0.00028795,2]
[406212757,1771608643856,-532.69,0.00028795,2]
[406212759,1771608643865,-334.99,0.00028795,10]
[406212761,1771608643874,-279.16,0.00028795,10]
[406212763,1771608643883,-161.07627513,0.00028795,2]
[406212765,1771608643892,-401.99,0.00028796,10]
[406212767,1771608643901,-151.0,0.00028796,7]
[406212769,1771608643910,-151.0,0.00028796,7]
[406212770,1771608643919,-32683.84511784,0.00028796,2]
[406212773,1771608643930,-9377.06113134,0.00028796,2]
[406212775,1771608643941,-2056.30000005,0.00028796,2]
[406212778,1771608643964,-313.24248007,0.00028796,2]
[406212780,1771608643973,-500.0,0.00028804,2]
[406212782,1771608643982,-500.0,0.00028805,2]
[406212784,1771608643991,-500.0,0.00028805,2]
[406212786,1771608644000,-278.52608844,0.00028805,2]
[406212788,1771608644009,-2000.0,0.00028805,2]
[406212790,1771608644018,-1184.03990001,0.00028805,2]
[406212792,1771608644027,-532.69,0.00028805,2]
[406212794,1771608644036,-532.69,0.00028805,2]
[406212807,1771608644143,-532.69,0.00028805,2]
[406212809,1771608644153,-532.69,0.00028805,2]
[406212811,1771608644163,-532.69,0.00028805,2]
[406212813,1771608644172,-532.69,0.00028805,2]
[406212815,1771608644180,-532.69,0.00028805,2]
[406212817,1771608644189,-532.69,0.00028805,2]
[406212820,1771608644198,-166653.69677812,0.00028806,2]
[406212823,1771608644209,-176.627,0.00028806,21]
[406212826,1771608644218,-851.8217,0.00028806,2]
[406212828,1771608644226,-169.6683,0.00028806,3]
[406212830,1771608644235,-510.32,0.00028806,2]
[406212832,1771608644244,-151.0,0.00028806,7]
[406212834,1771608644254,-151.0,0.00028806,7]
[406212836,1771608644263,-500.0,0.00028806,2]
[406212839,1771608644272,-532.69,0.00028889,2]
[406212841,1771608644281,-282.34,0.000289,14]
[406212844,1771608644290,-151.0,0.000289,7]
[406212847,1771608644300,-151.0,0.000289,7]
[406212849,1771608644309,-532.69,0.0002903,2]
[406212851,1771608644318,-186.0,0.00029033,7]
[406212853,1771608644327,-500.0,0.0002908,2]
[406212855,1771608644336,-244.0,0.00029174,2]
[406212857,1771608644346,-151.0,0.000294,20]
[406212859,1771608644355,-186.0,0.00029483,7]
[406212861,1771608644364,-572.0,0.00029678,2]
[406212863,1771608644373,-634.0,0.00029755,2]
[406212865,1771608644382,-151.0,0.0003036,2]
[406212867,1771608644391,-151.0,0.0003036,2]
[406212869,1771608644399,-151.0,0.0003036,2]
[406212871,1771608644408,-151.0,0.0003036,2]
[406212873,1771608644417,-151.0,0.0003036,2]
[406212875,1771608644426,-151.0,0.0003036,2]
[406212877,1771608644436,-151.0,0.0003036,2]
[406212879,1771608644445,-151.0,0.0003036,2]
[406212881,1771608644454,-151.0,0.0003036,2]
[406212883,1771608644463,-151.0,0.0003036,2]
[406212885,1771608644472,-170.07839991,0.0003036,2]
[406212887,1771608644481,-572.0,0.00030396,2]
[406212889,1771608644491,-244.0,0.00030412,7]
[406212891,1771608644500,-14810.1495764,0.00030435,2]
[406212893,1771608644509,-572.0,0.00030445,2]
[406212895,1771608644519,-244.0,0.00030463,2]
[406212897,1771608644528,-330.0,0.00030508,2]
[406212899,1771608644537,-151.0,0.000306,12]
[406212901,1771608644546,-29620.2991528,0.0003098,2]
[406212903,1771608644560,-100000.0,0.0003099,2]
[406212905,1771608644570,-9198.61360471,0.00030998,2]
[406212907,1771608644579,-532.69,0.00031061,2]
[406212909,1771608644588,-330.0,0.00031062,7]
[406212911,1771608644598,-572.0,0.00031062,7]
[406212913,1771608644609,-330.0,0.00031075,2]
[406212915,1771608644617,-330.0,0.00031075,2]
[406212917,1771608644626,-151.0,0.00031079,7]
[406212918,1771608644636,-183.084912,0.00031079,7]
[406212920,1771608644645,-330.0,0.00031133,2]
[406212922,1771608644654,-244.0,0.00031205,2]
[406212924,1771608644663,-572.0,0.0003127,2]
[406212926,1771608644673,-330.0,0.00031281,2]
[406212928,1771608644682,-532.69,0.00031489,2]
[406212930,1771608644692,-1828.32508946,0.00031545,12]
[406212932,1771608644701,-151.0,0.000316,7]
[406212934,1771608644711,-151.0,0.000318,19]
[406212936,1771608644720,-572.0,0.00031893,2]
[406212938,1771608644729,-532.69,0.00031989,2]
[406212940,1771608644738,-532.69,0.00031989,2]
[406212942,1771608644747,-532.69,0.00031989,2]
[406212944,1771608644756,-532.69,0.00031989,2]
[406212946,1771608644765,-532.69,0.00031989,2]
[406212948,1771608644775,-532.69,0.00031989,2]
[406212950,1771608644784,-532.69,0.00031989,2]
[406212952,1771608644793,-532.79,0.00031989,2]
[406212954,1771608644802,-708.37,0.00032,2]
[406212956,1771608644811,-572.0,0.00032067,2]
[406212958,1771608644820,-244.0,0.00032201,2]
[406212960,1771608644829,-518.3809228,0.00032268,15]
[406212962,1771608644839,-315.09231634,0.00032417,2]
[406212964,1771608644848,-999.0,0.00032876,120]
[406212966,1771608644857,-14810.1495764,0.0003289,2]
[406212968,1771608644866,-33819.24,0.000329,14]
[406212970,1771608644875,-487.0,0.000329,2]
[406212972,1771608644885,-487.0,0.000329,2]
[406212974,1771608644894,-487.0,0.000329,2]
[406212976,1771608644903,-487.0,0.000329,2]
[406212978,1771608644912,-487.0,0.000329,2]
[406212980,1771608644921,-640.52,0.000329,2]
[406212982,1771608644930,-151.0,0.00033,11]
[406212984,1771608644939,-525.76,0.00033243,2]
[406212986,1771608644948,-9198.61360471,0.00033289,2]
[406212988,1771608644957,-29620.2991528,0.0003341,2]
[406212990,1771608644967,-28257.75299198,0.0003342,2]
[406212993,1771608644986,-1383.37292564,0.0003342,2]
[406213039,1771608645636,-863.81,0.0003342,2]
[406213046,1771608645690,-755.78089031,0.0003342,2]
[406213048,1771608645701,-16301.40312298,0.0003342,2]
[406213059,1771608645800,-6636.8706174,0.0003342,2]
[406215186,1771608684987,153.0,4.3e-07,2]
[406215187,1771608686078,153.0,4.3e-07,2]
[406215188,1771608687190,153.0,4.3e-07,2]
[406215189,1771608688239,153.0,4.3e-07,2]
[406215190,1771608689320,153.0,4.3e-07,2]